lending/lending_fUSD_20250706
["ID","MTS","AMOUNT","RATE_DAILY","PERIOD"]
[369975751,1751807435058,-460.0,0.00019178,2]
[369975752,1751807435069,-460.0,0.00019178,2]
[369975753,1751807435080,-460.0,0.00019178,2]
[369975754,1751807435092,-460.0,0.00019178,2]
[369975755,1751807435103,-460.0,0.00019178,2]
[369975756,1751807435114,-467.65633522,0.00019178,2]
[369975757,1751807435125,-460.0,0.00019178,2]
[369975758,1751807435137,-460.0,0.00019178,2]
[369975759,1751807435148,-460.0,0.00019178,2]
[369975760,1751807435159,-460.0,0.00019178,2]
[369975761,1751807435171,-460.0,0.00019178,2]
[369975762,1751807435183,-460.0,0.00019178,2]
[369975763,1751807435194,-460.0,0.00019178,2]
[369975764,1751807435206,-471.12,0.00019178,2]
[369975765,1751807435217,-460.0,0.00019178,2]
[369975766,1751807435228,-609.1,0.00019178,2]
[369975767,1751807435239,-589.02,0.00019178,2]
[369975768,1751807435250,-460.0,0.00019178,2]
[369975769,1751807435261,-460.0,0.00019178,2]
[369975770,1751807435274,-460.0,0.00019178,2]
[369975771,1751807435285,-402.57646912,0.00019178,2]
[369975772,1751807435296,-460.0,0.00019178,2]
[369975773,1751807435308,-460.0,0.00019178,2]
[369975774,1751807435320,-995.14,0.00019178,2]
[369975775,1751807435331,-460.0,0.00019178,2]
[369975776,1751807435342,-460.0,0.00019178,2]
[369975777,1751807435353,-460.0,0.00019178,2]
[369975778,1751807435365,-460.0,0.00019178,2]
[369975779,1751807435377,-460.0,0.00019178,2]
[369975780,1751807435388,-460.0,0.00019178,2]
[369975781,1751807435399,-460.0,0.00019178,2]
[369975782,1751807435410,-460.0,0.00019178,2]
[369975783,1751807435422,-460.0,0.00019178,2]
[369975784,1751807435433,-460.0,0.00019178,2]
[369975785,1751807435445,-630.18,0.00019178,2]
[369975786,1751807435456,-460.0,0.00019178,2]
[369975787,1751807435467,-460.0,0.00019178,2]
[369975788,1751807435478,-460.0,0.00019178,2]
[369975789,1751807435489,-460.0,0.00019178,2]
[369975790,1751807435500,-460.0,0.00019178,2]
[369975791,1751807435511,-460.0,0.00019178,2]
[369975792,1751807435522,-460.0,0.00019178,2]
[369975793,1751807435534,-460.0,0.00019178,2]
[369975794,1751807435547,-460.0,0.00019178,2]
[369975795,1751807435558,-575.67,0.00019178,2]
[369975796,1751807435570,-863.09,0.00019178,2]
[369975797,1751807435582,-460.0,0.00019178,2]
[369975798,1751807435594,-576.79,0.00019178,2]
[369975799,1751807435605,-460.0,0.00019178,2]
[369975800,1751807435618,-460.0,0.00019178,2]
[369975801,1751807435631,-460.0,0.00019178,2]
[369975802,1751807435642,-795.62,0.00019178,2]
[369975803,1751807435654,-932.54,0.00019178,2]
[369975804,1751807435665,-460.0,0.00019178,2]
[369975805,1751807435677,-460.0,0.00019178,2]
[369975806,1751807435688,-460.0,0.00019178,2]
[369975807,1751807435699,-460.0,0.00019178,2]
[369975808,1751807435711,-460.0,0.00019178,2]
[369975809,1751807435722,-522.80550794,0.00019178,2]
[369975810,1751807435733,-460.0,0.00019178,2]
[369975811,1751807435745,-460.0,0.00019178,2]
[369975812,1751807435757,-460.0,0.00019178,2]
[369975813,1751807435768,-586.87978264,0.00019178,2]
[369975814,1751807435780,-460.0,0.00019178,2]
[369975815,1751807435792,-460.0,0.00019178,2]
[369975816,1751807435803,-460.0,0.00019178,2]
[369975817,1751807435815,-477.81,0.00019178,2]
[369975818,1751807435827,-460.0,0.00019178,2]
[369975819,1751807435839,-460.0,0.00019178,2]
[369975820,1751807435851,-460.0,0.00019178,2]
[369975821,1751807435863,-460.0,0.00019178,2]
[369975822,1751807435874,-203.52152055,0.00019178,2]
[369975823,1751807435891,-460.0,0.00019178,2]
[369975824,1751807435904,-460.0,0.00019178,2]
[369975825,1751807435916,-460.0,0.00019178,2]
[369975826,1751807435928,-460.0,0.00019178,2]
[369975827,1751807435941,-460.0,0.00019178,2]
[369975828,1751807435953,-460.0,0.00019178,2]
[369975829,1751807435965,-488.24787665,0.00019178,2]
[369975830,1751807435977,-460.0,0.00019178,2]
[369975831,1751807435989,-460.0,0.00019178,2]
[369975832,1751807436000,-460.0,0.00019178,2]
[369975833,1751807436012,-460.0,0.00019178,2]
[369975834,1751807436024,-460.0,0.00019178,2]
[369975835,1751807436036,-460.0,0.00019178,2]
[369975836,1751807436049,-460.0,0.00019178,2]
[369975837,1751807436062,-460.0,0.00019178,2]
[369975838,1751807436075,-460.0,0.00019178,2]
[369975839,1751807436087,-460.0,0.00019178,2]
[369975840,1751807436099,-460.0,0.00019178,2]
[369975841,1751807436111,-300.0,0.00019178,2]
[369975842,1751807436124,-571.43,0.00019178,2]
[369975843,1751807436136,-499.52,0.00019178,2]
[369975844,1751807436148,-460.0,0.00019178,2]
[369975845,1751807436160,-460.0,0.00019178,2]
[369975846,1751807436170,-646.47,0.00019178,2]
[369975847,1751807436180,-460.0,0.00019178,2]
[369975848,1751807436190,-460.0,0.00019178,2]
[369975849,1751807436200,-495.39341578,0.00019178,2]
[369975850,1751807436209,-576.41,0.00019178,2]
[369975851,1751807436219,-550.0,0.00019178,2]
[369975852,1751807436231,-596.01821692,0.00019178,2]
[369975853,1751807436245,-460.0,0.00019178,2]
[369975854,1751807436255,-800.29,0.00019178,2]
[369975855,1751807436266,-460.0,0.00019178,2]
[369975856,1751807436279,-565.41,0.00019178,2]
[369975857,1751807436289,-1128.07,0.00019178,2]
[369975858,1751807436299,-573.28193569,0.00019178,2]
[369975859,1751807436308,-471.22,0.00019178,2]
[369975860,1751807436320,-524.65,0.00019178,2]
[369975861,1751807436767,-586.38780078,0.00019178,2]
[369975862,1751807436792,-536.97,0.00019178,2]
[369975863,1751807436802,-460.0,0.00019178,2]
[369975864,1751807436811,-460.0,0.00019178,2]
[369975865,1751807436821,-460.0,0.00019178,2]
[369975866,1751807436831,-460.0,0.00019178,2]
[369975867,1751807436840,-460.0,0.00019178,2]
[369975868,1751807436851,-460.0,0.00019178,2]
[369975869,1751807436860,-640.68,0.00019178,2]
[369975870,1751807436870,-460.0,0.00019178,2]
[369975871,1751807436879,-460.0,0.00019178,2]
[369975872,1751807436889,-460.0,0.00019178,2]
[369975873,1751807436899,-705.25,0.00019178,2]
[369975874,1751807436909,-460.0,0.00019178,2]
[369975875,1751807436918,-555.8334865,0.00019178,2]
[369975876,1751807436928,-460.0,0.00019178,2]
[369975877,1751807436938,-460.0,0.00019178,2]
[369975878,1751807436947,-160.0,0.00019178,2]
[369975879,1751807436956,-366.96665006,0.00019178,2]
[369975880,1751807436966,-460.0,0.00019178,2]
[369975881,1751807436976,-460.0,0.00019178,2]
[369975882,1751807436985,-460.0,0.00019178,2]
[369975883,1751807436995,-460.0,0.00019178,2]
[369975884,1751807437005,-460.0,0.00019178,2]
[369975885,1751807437015,-307.82902299,0.00019178,2]
[369975886,1751807437025,-533.08,0.00019178,2]
[369975887,1751807437035,-460.0,0.00019178,2]
[369975888,1751807437045,-460.0,0.00019178,2]
[369975889,1751807437054,-460.0,0.00019178,2]
[369975890,1751807437064,-460.0,0.00019178,2]
[369975891,1751807437074,-460.0,0.00019178,2]
[369975892,1751807437084,-460.0,0.00019178,2]
[369975893,1751807437093,-460.0,0.00019178,2]
[369975894,1751807437103,-460.0,0.00019178,2]
[369975895,1751807437112,-460.0,0.00019178,2]
[369975896,1751807437121,-460.0,0.00019178,2]
[369975897,1751807437131,-460.0,0.00019178,2]
[369975898,1751807437140,-460.0,0.00019178,2]
[369975899,1751807437149,-460.0,0.00019178,2]
[369975900,1751807437158,-460.0,0.00019178,2]
[369975901,1751807437168,-460.0,0.00019178,2]
[369975902,1751807437177,-460.0,0.00019178,2]
[369975903,1751807437186,-460.0,0.00019178,2]
[369975904,1751807437195,-460.0,0.00019178,2]
[369975905,1751807437204,-468.85162171,0.00019178,2]
[369975906,1751807437214,-460.0,0.00019178,2]
[369975907,1751807437223,-460.0,0.00019178,2]
[369975908,1751807437233,-460.0,0.00019178,2]
[369975909,1751807437243,-508.15,0.00019178,2]
[369975910,1751807437252,-460.0,0.00019178,2]
[369975911,1751807437262,-460.0,0.00019178,2]
[369975912,1751807437273,-885.89,0.00019178,2]
[369975913,1751807437283,-460.0,0.00019178,2]
[369975914,1751807437292,-460.0,0.00019178,2]
[369975915,1751807437301,-460.0,0.00019178,2]
[369975916,1751807437310,-460.0,0.00019178,2]
[369975917,1751807437319,-460.0,0.00019178,2]
[369975918,1751807437328,-460.0,0.00019178,2]
[369975919,1751807437339,-460.0,0.00019178,2]
[369975920,1751807437348,-460.0,0.00019178,2]
[369975921,1751807437357,-460.0,0.00019178,2]
[369975922,1751807437367,-460.0,0.00019178,2]
[369975923,1751807437376,-460.0,0.00019178,2]
[369975924,1751807437385,-460.0,0.00019178,2]
[369975925,1751807437394,-460.0,0.00019178,2]
[369975926,1751807437406,-460.0,0.00019178,2]
[369975927,1751807437415,-460.0,0.00019178,2]
[369975928,1751807437424,-460.0,0.00019178,2]
[369975929,1751807437433,-460.0,0.00019178,2]
[369975930,1751807437442,-1679.03,0.00019178,2]
[369975931,1751807437451,-460.0,0.00019178,2]
[369975932,1751807437461,-460.0,0.00019178,2]
[369975933,1751807437470,-460.0,0.00019178,2]
[369975934,1751807437479,-460.0,0.00019178,2]
[369975935,1751807437489,-460.0,0.00019178,2]
[369975936,1751807437498,-460.0,0.00019178,2]
[369975937,1751807437507,-460.0,0.00019178,2]
[369975938,1751807437517,-557.12785176,0.00019178,2]
[369975939,1751807437526,-460.0,0.00019178,2]
[369975940,1751807437536,-863.65,0.00019178,2]
[369975941,1751807437546,-460.0,0.00019178,2]
[369975942,1751807437558,-460.0,0.00019178,2]
[369975943,1751807437568,-260.69779313,0.00019178,2]
[369975944,1751807437578,-460.0,0.00019178,2]
[369975945,1751807437588,-150.0,0.00019178,2]
[369975946,1751807437598,-460.0,0.00019178,2]
[369975947,1751807437607,-500.0,0.00019178,2]
[369975948,1751807437618,-460.0,0.00019178,2]
[369975949,1751807437627,-460.0,0.00019178,2]
[369975950,1751807437637,-472.51624052,0.00019178,2]
[369975951,1751807437646,-460.0,0.00019178,2]
[369975952,1751807437655,-623.71,0.00019178,2]
[369975953,1751807437665,-740.51,0.00019178,2]
[369975954,1751807437674,-460.0,0.00019178,2]
[369975955,1751807437683,-460.0,0.00019178,2]
[369975956,1751807437692,-460.0,0.00019178,2]
[369975957,1751807437702,-460.0,0.00019178,2]
[369975958,1751807437712,-460.0,0.00019178,2]
[369975959,1751807437722,-641.56,0.00019178,2]
[369975960,1751807437734,-460.0,0.00019178,2]
[369975961,1751807437744,-460.0,0.00019178,2]
[369975962,1751807437754,-460.0,0.00019178,2]
[369975963,1751807437764,-460.0,0.00019178,2]
[369975964,1751807437773,-460.0,0.00019178,2]
[369975965,1751807437782,-460.0,0.00019178,2]
[369975966,1751807437792,-460.0,0.00019178,2]
[369975967,1751807437802,-453.35524406,0.00019178,2]
[369975968,1751807437811,-841.91,0.00019178,2]
[369975969,1751807437820,-460.0,0.00019178,2]
[369975970,1751807437829,-460.0,0.00019178,2]
[369975971,1751807437839,-460.0,0.00019178,2]
[369975972,1751807437848,-460.0,0.00019178,2]
[369975973,1751807437858,-885.96,0.00019178,2]
[369975974,1751807437867,-460.0,0.00019178,2]
[369975975,1751807437876,-936.0,0.00019178,2]
[369975976,1751807437886,-460.0,0.00019178,2]
[369975977,1751807437895,-460.0,0.00019178,2]
[369975978,1751807437905,-506.66,0.00019178,2]
[369975979,1751807437914,-460.0,0.00019178,2]
[369975980,1751807437925,-460.0,0.00019178,2]
[369975981,1751807437937,-460.0,0.00019178,2]
[369975982,1751807437948,-460.0,0.00019178,2]
[369975983,1751807437957,-460.0,0.00019178,2]
[369975984,1751807437967,-556.99,0.00019178,2]
[369975985,1751807437976,-460.0,0.00019178,2]
[369975986,1751807437985,-460.0,0.00019178,2]
[369975987,1751807437995,-460.0,0.00019178,2]
[369975988,1751807438004,-460.0,0.00019178,2]
[369975989,1751807438013,-460.0,0.00019178,2]
[369975990,1751807438023,-460.0,0.00019178,2]
[369975991,1751807438031,-460.0,0.00019178,2]
[369975992,1751807438041,-460.0,0.00019178,2]
[369975993,1751807438051,-460.0,0.00019178,2]
[369975994,1751807438060,-460.0,0.00019178,2]
[369975995,1751807438070,-460.0,0.00019178,2]
[369975996,1751807438079,-460.0,0.00019178,2]
[369975997,1751807438089,-588.83,0.00019178,2]
[369975998,1751807438098,-460.0,0.00019178,2]
[369975999,1751807438107,-460.0,0.00019178,2]
[369976000,1751807438117,-460.0,0.00019178,2]
[369976001,1751807438126,-460.0,0.00019178,2]
[369976002,1751807438136,-460.0,0.00019178,2]
[369976003,1751807438146,-1302.88,0.00019178,2]
[369976004,1751807438156,-460.0,0.00019178,2]
[369976005,1751807438165,-460.0,0.00019178,2]
[369976006,1751807438174,-460.0,0.00019178,2]
[369976007,1751807438183,-460.0,0.00019178,2]
[369976008,1751807438193,-460.0,0.00019178,2]
[369976009,1751807438203,-460.0,0.00019178,2]
[369976010,1751807438212,-701.3,0.00019178,2]
[369976011,1751807438222,-466.23,0.00019178,2]
[369976012,1751807438231,-683.35,0.00019178,2]
[369976013,1751807438241,-460.0,0.00019178,2]
[369976014,1751807438250,-460.0,0.00019178,2]
[369976016,1751807438259,-460.0,0.00019178,2]
[369976017,1751807438271,-1123.84,0.00019178,2]
[369976018,1751807438281,-490.0,0.00019178,2]
[369976019,1751807438291,-460.0,0.00019178,2]
[369976020,1751807438300,-460.0,0.00019178,2]
[369976021,1751807438310,-758.23,0.00019178,2]
[369976022,1751807438321,-515.71,0.00019178,2]
[369976023,1751807438330,-460.0,0.00019178,2]
[369976024,1751807438340,-460.0,0.00019178,2]
[369976025,1751807438349,-460.0,0.00019178,2]
[369976026,1751807438359,-845.86,0.00019178,2]
[369976027,1751807438368,-512.95,0.00019178,2]
[369976028,1751807438377,-460.0,0.00019178,2]
[369976029,1751807438387,-460.0,0.00019178,2]
[369976030,1751807438396,-460.0,0.00019178,2]
[369976031,1751807438406,-460.0,0.00019178,2]
[369976032,1751807438415,-460.0,0.00019178,2]
[369976033,1751807438425,-460.0,0.00019178,2]
[369976034,1751807438435,-460.0,0.00019178,2]
[369976035,1751807438445,-630.68,0.00019178,2]
[369976036,1751807438455,-496.08474935,0.00019178,2]
[369976037,1751807438464,-460.0,0.00019178,2]
[369976038,1751807438474,-479.86,0.00019178,2]
[369976039,1751807438484,-460.0,0.00019178,2]
[369976040,1751807438494,-460.0,0.00019178,2]
[369976041,1751807438503,-483.95068376,0.00019178,2]
[369976042,1751807438512,-460.0,0.00019178,2]
[369976044,1751807438522,-460.0,0.00019178,2]
[369976045,1751807438532,-460.0,0.00019178,2]
[369976047,1751807438542,-460.0,0.00019178,2]
[369976048,1751807438551,-460.0,0.00019178,2]
[369976050,1751807438560,-509.77,0.00019178,2]
[369976052,1751807438570,-460.0,0.00019178,2]
[369976054,1751807438579,-690.08,0.00019178,2]
[369976056,1751807438589,-460.0,0.00019178,2]
[369976058,1751807438598,-460.0,0.00019178,2]
[369976060,1751807438608,-1272.96,0.00019178,2]
[369976063,1751807438618,-705.81,0.00019178,2]
[369976065,1751807438628,-460.0,0.00019178,2]
[369976067,1751807438638,-460.0,0.00019178,2]
[369976069,1751807438648,-460.0,0.00019178,2]
[369976071,1751807438657,-460.0,0.00019178,2]
[369976073,1751807438667,-522.77828556,0.00019178,2]
[369976075,1751807438676,-460.0,0.00019178,2]
[369976077,1751807438685,-460.0,0.00019178,2]
[369976079,1751807438695,-460.0,0.00019178,2]
[369976081,1751807438705,-460.0,0.00019178,2]
[369976083,1751807438714,-460.0,0.00019178,2]
[369976085,1751807438723,-460.0,0.00019178,2]
[369976087,1751807438733,-460.0,0.00019178,2]
[369976089,1751807438742,-460.0,0.00019178,2]
[369976091,1751807438752,-460.0,0.00019178,2]
[369976093,1751807438761,-460.0,0.00019178,2]
[369976095,1751807438771,-2768.06,0.00019178,2]
[369976097,1751807438780,-460.0,0.00019178,2]
[369976099,1751807438790,-484.19,0.00019178,2]
[369976101,1751807438799,-460.0,0.00019178,2]
[369976103,1751807438808,-460.0,0.00019178,2]
[369976105,1751807438817,-460.0,0.00019178,2]
[369976107,1751807438827,-1001.61,0.00019178,2]
[369976109,1751807438836,-781.78,0.00019178,2]
[369976111,1751807438846,-460.0,0.00019178,2]
[369976113,1751807438856,-460.0,0.00019178,2]
[369976115,1751807438866,-460.0,0.00019178,2]
[369976117,1751807438876,-460.0,0.00019178,2]
[369976119,1751807438886,-460.0,0.00019178,2]
[369976121,1751807438895,-460.0,0.00019178,2]
[369976123,1751807438905,-1435.97,0.00019178,2]
[369976125,1751807438914,-465.46048959,0.00019178,2]
[369976127,1751807438924,-460.0,0.00019178,2]
[369976129,1751807438934,-460.0,0.00019178,2]
[369976131,1751807438943,-460.0,0.00019178,2]
[369976133,1751807438953,-460.0,0.00019178,2]
[369976136,1751807438963,-460.0,0.00019178,2]
[369976138,1751807438973,-460.0,0.00019178,2]
[369976140,1751807438983,-460.0,0.00019178,2]
[369976142,1751807438992,-460.0,0.00019178,2]
[369976144,1751807439001,-460.0,0.00019178,2]
[369976146,1751807439011,-380.0,0.00019178,2]
[369976148,1751807439021,-460.0,0.00019178,2]
[369976150,1751807439031,-460.0,0.00019178,2]
[369976152,1751807439040,-460.0,0.00019178,2]
[369976154,1751807439051,-460.0,0.00019178,2]
[369976156,1751807439061,-314.8354839,0.00019178,2]
[369976158,1751807439070,-460.0,0.00019178,2]
[369976160,1751807439080,-460.0,0.00019178,2]
[369976162,1751807439089,-460.0,0.00019178,2]
[369976164,1751807439099,-460.0,0.00019178,2]
[369976166,1751807439109,-460.0,0.00019178,2]
[369976168,1751807439119,-625.38,0.00019178,2]
[369976170,1751807439129,-474.53,0.00019178,2]
[369976172,1751807439139,-1148.53,0.00019178,2]
[369976174,1751807439148,-460.0,0.00019178,2]
[369976177,1751807439158,-465.39474282,0.00019178,2]
[369976179,1751807439169,-460.0,0.00019178,2]
[369976181,1751807439179,-469.92191311,0.00019178,2]
[369976183,1751807439188,-466.853628,0.00019178,2]
[369976185,1751807439198,-897.15,0.00019178,2]
[369976187,1751807439208,-460.0,0.00019178,2]
[369976189,1751807439217,-460.0,0.00019178,2]
[369976191,1751807439229,-460.0,0.00019178,2]
[369976193,1751807439238,-554.06114954,0.00019178,2]
[369976195,1751807439248,-460.0,0.00019178,2]
[369976197,1751807439258,-460.0,0.00019178,2]
[369976199,1751807439269,-2049.79,0.00019178,2]
[369976201,1751807439280,-460.0,0.00019178,2]
[369976203,1751807439290,-460.0,0.00019178,2]
[369976205,1751807439299,-240.322131,0.00019178,2]
[369976208,1751807439309,-763.13,0.00019178,2]
[369976210,1751807439319,-460.0,0.00019178,2]
[369976212,1751807439330,-460.0,0.00019178,2]
[369976214,1751807439340,-460.0,0.00019178,2]
[369976216,1751807439350,-460.0,0.00019178,2]
[369976218,1751807439360,-460.0,0.00019178,2]
[369976220,1751807439369,-854.22,0.00019178,2]
[369976222,1751807439379,-3757.39,0.00019178,2]
[369976224,1751807439389,-560.65,0.00019178,2]
[369976226,1751807439398,-306.07892189,0.00019178,2]
[369976228,1751807439407,-634.04,0.00019178,2]
[369976230,1751807439417,-827.25,0.00019178,2]
[369976232,1751807439427,-460.0,0.00019178,2]
[369976234,1751807439436,-460.0,0.00019178,2]
[369976236,1751807439446,-2906.36,0.00019178,2]
[369976238,1751807439455,-546.88,0.00019178,2]
[369976240,1751807439465,-580.0,0.00019178,2]
[369976242,1751807439474,-460.0,0.00019178,2]
[369976244,1751807439484,-460.0,0.00019178,2]
[369976246,1751807439494,-460.0,0.00019178,2]
[369976248,1751807439503,-460.0,0.00019178,2]
[369976250,1751807439512,-2250.95,0.00019178,2]
[369976252,1751807439521,-473.61502701,0.00019178,2]
[369976254,1751807439531,-2074.95,0.00019178,2]
[369976256,1751807439541,-460.0,0.00019178,2]
[369976258,1751807439550,-460.0,0.00019178,2]
[369976260,1751807439560,-460.0,0.00019178,2]
[369976262,1751807439569,-568.51,0.00019178,2]
[369976264,1751807439579,-460.0,0.00019178,2]
[369976266,1751807439588,-460.0,0.00019178,2]
[369976268,1751807439598,-460.0,0.00019178,2]
[369976270,1751807439608,-460.0,0.00019178,2]
[369976272,1751807439618,-466.69467275,0.00019178,2]
[369976274,1751807439627,-492.44,0.00019178,2]
[369976276,1751807439637,-460.0,0.00019178,2]
[369976278,1751807439646,-460.0,0.00019178,2]
[369976280,1751807439656,-460.0,0.00019178,2]
[369976282,1751807439665,-460.0,0.00019178,2]
[369976284,1751807439675,-460.0,0.00019178,2]
[369976286,1751807439685,-460.0,0.00019178,2]
[369976288,1751807439694,-460.0,0.00019178,2]
[369976290,1751807439703,-460.0,0.00019178,2]
[369976292,1751807439713,-460.0,0.00019178,2]
[369976294,1751807439723,-4122.8,0.00019178,2]
[369976296,1751807439732,-460.0,0.00019178,2]
[369976298,1751807439742,-460.0,0.00019178,2]
[369976300,1751807439751,-460.0,0.00019178,2]
[369976302,1751807439761,-460.0,0.00019178,2]
[369976304,1751807439770,-460.0,0.00019178,2]
[369976306,1751807439779,-460.0,0.00019178,2]
[369976308,1751807439789,-460.0,0.00019178,2]
[369976310,1751807439798,-1242.34,0.00019178,2]
[369976312,1751807439808,-460.0,0.00019178,2]
[369976315,1751807439818,-460.0,0.00019178,2]
[369976317,1751807439828,-460.0,0.00019178,2]
[369976322,1751807440027,-460.0,0.00019178,2]
[369976324,1751807440041,-499.69922871,0.00019178,2]
[369976326,1751807440051,-460.0,0.00019178,2]
[369976328,1751807440060,-493.3,0.00019178,2]
[369976330,1751807440070,-460.0,0.00019178,2]
[369976332,1751807440079,-460.0,0.00019178,2]
[369976334,1751807440089,-460.0,0.00019178,2]
[369976336,1751807440098,-554.94,0.00019178,2]
[369976338,1751807440107,-1318.84,0.00019178,2]
[369976340,1751807440116,-691.35,0.00019178,2]
[369976342,1751807440125,-948.69,0.00019178,2]
[369976344,1751807440134,-460.0,0.00019178,2]
[369976346,1751807440144,-734.89,0.00019178,2]
[369976348,1751807440153,-447.95672727,0.00019178,2]
[369976350,1751807440163,-1967.43,0.00019178,2]
[369976352,1751807440172,-460.0,0.00019178,2]
[369976354,1751807440181,-460.0,0.00019178,2]
[369976356,1751807440191,-460.0,0.00019178,2]
[369976358,1751807440200,-460.0,0.00019178,2]
[369976360,1751807440209,-460.0,0.00019178,2]
[369976362,1751807440218,-665.78,0.00019178,2]
[369976364,1751807440227,-807.79,0.00019178,2]
[369976366,1751807440236,-787.54,0.00019178,2]
[369976368,1751807440245,-370.48080272,0.00019178,2]
[369976370,1751807440255,-758.99,0.00019178,2]
[369976372,1751807440264,-460.0,0.00019178,2]
[369976374,1751807440277,-924.21,0.00019178,2]
[369976376,1751807440287,-460.0,0.00019178,2]
[369976378,1751807440296,-460.0,0.00019178,2]
[369976380,1751807440305,-460.0,0.00019178,2]
[369976382,1751807440317,-460.0,0.00019178,2]
[369976384,1751807440326,-460.0,0.00019178,2]
[369976386,1751807440335,-935.94,0.00019178,2]
[369976388,1751807440346,-460.0,0.00019178,2]
[369976390,1751807440355,-637.35,0.00019178,2]
[369976392,1751807440364,-507.66,0.00019178,2]
[369976394,1751807440374,-1014.0,0.00019178,2]
[369976396,1751807440383,-460.0,0.00019178,2]
[369976398,1751807440393,-460.0,0.00019178,2]
[369976400,1751807440402,-460.0,0.00019178,2]
[369976402,1751807440412,-688.93,0.00019178,2]
[369976404,1751807440421,-569.81,0.00019178,2]
[369976406,1751807440431,-520.01,0.00019178,2]
[369976408,1751807440440,-460.0,0.00019178,2]
[369976410,1751807440450,-563.26429123,0.00019178,2]
[369976412,1751807440459,-460.0,0.00019178,2]
[369976414,1751807440469,-787.66,0.00019178,2]
[369976416,1751807440478,-407.87311819,0.00019178,2]
[369976418,1751807440488,-460.0,0.00019178,2]
[369976420,1751807440497,-460.0,0.00019178,2]
[369976422,1751807440507,-460.0,0.00019178,2]
[369976424,1751807440516,-460.0,0.00019178,2]
[369976426,1751807440526,-460.0,0.00019178,2]
[369976428,1751807440535,-460.0,0.00019178,2]
[369976430,1751807440545,-490.0,0.00019178,2]
[369976432,1751807440555,-765.43,0.00019178,2]
[369976434,1751807440565,-500.64,0.00019178,2]
[369976436,1751807440574,-460.0,0.00019178,2]
[369976438,1751807440584,-784.99,0.00019178,2]
[369976440,1751807440594,-460.0,0.00019178,2]
[369976442,1751807440604,-1378.88,0.00019178,2]
[369976444,1751807440614,-460.0,0.00019178,2]
[369976446,1751807440624,-460.0,0.00019178,2]
[369976448,1751807440634,-1495.5,0.00019178,2]
[369976450,1751807440643,-734.84,0.00019178,2]
[369976452,1751807440653,-460.0,0.00019178,2]
[369976454,1751807440662,-460.0,0.00019178,2]
[369976456,1751807440672,-798.35,0.00019178,2]
[369976458,1751807440682,-658.9,0.00019178,2]
[369976460,1751807440692,-460.0,0.00019178,2]
[369976462,1751807440701,-597.17,0.00019178,2]
[369976464,1751807440711,-7051.36,0.00019178,2]
[369976466,1751807440720,-623.76,0.00019178,2]